Cogmind - Beta 16.1 @@@ ROGUE MODE // 2026.04.07 @ 21:24:10 Player: Ace Result: Destroyed by G-34 Mercenary with Small Laser Performance ------------- Evolutions (0) 0 Regions Visited (2) 400 Robots Destroyed (23) 115 Value Destroyed (478) 478 Prototype IDs (0) 0 Alien Tech Used (0) 0 Bonus (0) 0 TOTAL SCORE: 993 Bonus ------- None Cogmind --------- Core Integrity 0/250 Matter 299/300 Energy 123/125 System Corruption 0% Temperature Warm (104) Movement Rolling (100) Location -10/Mines Parts ------- > --- POWER (1) -------- Light Ion Engine > --- PROPULSION (2) --- Compact Wheel Compact Wheel > --- UTILITY (2) ------ Seismic Detector Weapon Shielding > --- WEAPON (2) ------- Particle Gun Light Assault Rifle > --- INVENTORY (5) ---- Light Ion Engine Wheel Small Storage Unit Light Assault Rifle Rocket Launcher Peak State ------------ > --- POWER ------------ Ion Engine > --- PROPULSION ------- Aluminum Leg Aluminum Leg > --- UTILITY ---------- Improved Terrain Scanner Seismic Detector > --- WEAPON ----------- EM Pulse Gun Light Assault Rifle > --- INVENTORY -------- Ion Engine Light Ion Engine Small Storage Unit Tractor Beam EM Pulse Gun [Rating: 9] Favorites ----------- Power Ion Engine Engine Ion Engine Propulsion Aluminum Leg Leg Aluminum Leg Wheel Compact Wheel Utility Seismic Detector Device Seismic Detector Storage Small Storage Unit Protection Weapon Shielding Weapon Light Assault Rifle Energy Gun EM Pulse Gun Ballistic Gun Light Assault Rifle Launcher Rocket Launcher Build | -11 -10 -10 ------- Run | Yrd Mat Min Slots Evolved . | . . . Power . | . . . Propulsion . | . . . Utility . | . . . Weapon . | . . . Parts Attached 31 | 9 11 11 Power 5 | 1 2 2 Engine 5 | 1 2 2 Core . | . . . Reactor . | . . . Propulsion 9 | 2 3 4 Treads . | . . . Leg 6 | 2 3 1 Wheel 3 | . . 3 Hover . | . . . Flight . | . . . Utility 9 | 4 4 1 Device 4 | 3 . 1 Storage 1 | 1 . . Processor . | . . . Hackware . | . . . Protection 4 | . 4 . Artifact . | . . . Weapon 8 | 2 2 4 Energy Gun 5 | 1 2 2 Energy Cannon . | . . . Ballistic Gun 2 | 1 . 1 Ballistic Cannon . | . . . Launcher 1 | . . 1 Special Weapon . | . . . Impact Weapon . | . . . Slashing Weapon . | . . . Piercing Weapon . | . . . Special Melee Weapon . | . . . Unidentified Prototypes . | . . . Parts Lost 8 | . 6 2 Power 1 | . 1 . Propulsion 2 | . 2 . Utility 2 | . 1 1 Weapon 3 | . 2 1 Highest Loss Streak 3 | . 3 1 To Critical Strikes . | . . . Average Backups 3 | 1 4 3 Power . | . 1 . Propulsion . | . . . Utility 1 | . 1 1 Weapon . | . . 1 Tool/Special . | . . . Unused Backups 2 | . . 2 Power . | . . . Propulsion 1 | . . 1 Utility . | . . . Weapon 1 | . . 1 Tool/Special . | . . . Average Slot Usage (%) 96 | . 94 98 Engine 13 | . 13 14 Leg 22 | . 26 17 Wheel 4 | . . 9 Device 15 | . 18 11 Protection 10 | . 7 14 Energy Gun 13 | . 13 13 Ballistic Gun 12 | . 14 11 Launcher 1 | . . 3 Peak Build Rating 9 | 9 9 9 Average Rating 7 | 5 7 7 On Entrance 5 | . 9 7 Avg Prop Armor Cover (%) 10 | . . 10 Naked Turns . | . . . Heaviest Build 14 | 14 11 14 Greatest Support 32 | 20 20 32 Greatest Overweight (x) 3 | 3 . 1 Average Overweight (x) . | . . . Largest Inventory Capacity 8 | 8 5 5 Average Capacity 5 | 7 5 5 Most Carried 6 | 6 5 5 Average Carried 3 | 1 4 3 Final Capacity 5 | 5 5 5 Final Carried 5 | 4 4 5 Class Distribution -------------------- 63% | Mutant 36% | Scavenger-Mutant Dominant Class ---------------- Mutant | -10/Materials Scavenger-Mutant | -10/Mines Resources | -11 -10 -10 ----------- Run | Yrd Mat Min Matter Collected 767 | 284 190 293 Remotely 24 | 24 . . Salvage Created 981 | 127 354 500 Parts 41 | 10 13 18 Haulers Intercepted . | . . . Recyclers Shooed 3 | . . 3 Parts Field Recycled . | . . . Retrieved Matter . | . . . Parts Self-Destructed . | . . . Prevented . | . . . Parts Restored . | . . . Kills | -11 -10 -10 ------- Run | Yrd Mat Min Combat Hostiles Destroyed 11 | . 8 3 Guns 11 | . 8 3 Classes Destroyed 6 | 2 3 1 Worker 2 | . . 2 Tunneler 4 | 3 . 1 Recycler 5 | 1 . 4 Operator 1 | . 1 . Swarmer 1 | . 1 . Grunt 10 | . 7 3 Best Kill Streak 3 | 2 2 3 Combat Bots Only 2 | . 2 1 Max Kills in Single Turn 2 | 2 1 1 Gunslinging . | . . . Exploded . | . . . Melee . | . . . Uniques/NPCs Destroyed . | . . . Combat | -11 -10 -10 -------- Run | Yrd Mat Min Hostile Shots Fired 112 | . 78 34 Missed 25 | . 19 6 Hits 87 | . 59 28 Projectile 87 | . 59 28 Critical Strikes 2 | . 2 . Damage Taken 1310 | . 865 445 Core 256 | . 135 121 Absorbed by Shields . | . . . Redirected to Shielding 40 | . 5 35 Regen/Repaired (Parts) 14 | . 14 . Core Remaining (%) 100 | 100 . . Volleys Fired 99 | 14 52 33 Largest 2 | 2 2 2 Hottest 105 | 60 60 105 Shots Fired 182 | 28 88 66 Gun 179 | 28 88 63 Cannon . | . . . Launcher 3 | . . 3 Special . | . . . Kinetic 89 | 14 52 23 Thermal 49 | . 9 40 Explosive 3 | . . 3 Electromagnetic 41 | 14 27 . Robot Hit Streak 11 | 8 11 7 Robot Miss Streak 5 | 2 5 3 Penetration Max . | . . . Secondary Targets 2 | . 1 1 Max Gunslinging Chain 1 | . 1 1 Shots Hit Robots 110 | 16 60 34 Core Hits 46 | 7 20 19 Critical Kills . | . . . Critical Parts Destroyed . | . . . Critical Strikes 6 | . 2 4 Burn 4 | . . 4 Corrupt 2 | . 2 . Melee Attacks . | . . . Impact . | . . . Slashing . | . . . Piercing . | . . . Sneak Attacks . | . . . Combat Hostiles . | . . . Follow-up Attacks . | . . . Damage Inflicted 1262 | 187 593 482 Guns 1161 | 187 593 381 Cannons . | . . . Explosions 101 | . . 101 Melee . | . . . Ramming . | . . . Kinetic 451 | 54 309 88 Thermal 368 | . 75 293 Explosive 101 | . . 101 Electromagnetic 342 | 133 209 . Impact . | . . . Slashing . | . . . Piercing . | . . . Highest Corruption . | . . . Average Corruption . | . . . Corruption Purged . | . . . Corruption Blocked . | . . . Overload Shots . | . . . Overflow Damage . | . . . Projectiles . | . . . Explosions . | . . . Melee . | . . . Knockbacks . | . . . Impact . | . . . Kinetic . | . . . Secondary . | . . . Self-Inflicted Damage 48 | . . 48 Shots 2 | . . 2 Rammed . | . . . Targets Rammed . | . . . Kicked . | . . . Crushed . | . . . Highest Temperature 575 | 60 96 575 Average Temperature 88 | 25 39 152 Received Heat Transfer 567 | . 372 195 Effects 15 | . . 15 Shutdowns 1 | . . 1 Energy Bleed 1 | . . 1 Interference 2 | . . 2 Matter Decay 1 | . . 1 Short Circuit 1 | . . 1 Damage (minor) 4 | . . 4 Damage (major) 4 | . . 4 Damage (core) 1 | . . 1 Siege Activations . | . . . Martial Activations . | . . . Shielding Activations . | . . . Robots Disrupted . | . . . Combat Hostiles . | . . . Robots Corrupted . | . . . Combat Hostiles . | . . . Parts Fried 1 | . 1 . Impact Corruptions . | . . . Robots Melted . | . . . Combat Hostiles . | . . . Parts Melted 1 | . . 1 Heat Transferred 1200 | . 175 1025 Parts Sabotaged . | . . . Parts Stolen . | . . . Parts Stripped . | . . . Power Chain Reactions . | . . . Alert | -11 -10 -10 ------- Run | Yrd Mat Min Maximum Alert Level . | . . . Low Security (%) 100 | 100 100 100 Level 1 . | . . . Level 2 . | . . . Level 3 . | . . . Level 4 . | . . . Level 5 . | . . . High Security . | . . . Max Security . | . . . Peak Influence 43 | 10 43 40 Initial . | . . . Average 11 | 1 13 10 Influence Increases 438 | 20 253 165 Destroy 0b10 Robot/C 220 | . 160 60 Destroy 0b10 Robot/NC 60 | 20 5 35 Destroy Leader 60 | . 40 20 Successful Hack 3 | . 3 . Destroy Structure 20 | . . 20 Lose Combat Pursuer 75 | . 45 30 Influence Decreases 408 | 20 253 135 Time Decay 328 | 20 183 125 Lost Part 51 | . 41 10 Purge Threat 29 | . 29 . Squads Dispatched 2 | . 2 . Investigation . | . . . Extermination . | . . . Reinforcement 2 | . 2 . Assault . | . . . Garrison . | . . . Intercept . | . . . Searches Triggered . | . . . Construction Impeded . | . . . Haulers Reinforced . | . . . Active Scanning Responses . | . . . Cargo Convoy Interrupts . | . . . Stealth | -11 -10 -10 --------- Run | Yrd Mat Min Distress Signals . | . . . Communications Jammed . | . . . Distress Signals . | . . . Times Spotted 22 | . 17 5 Peak Tracking Total 3 | . 3 2 Tactical Retreats 3 | . 2 1 Traps | -11 -10 -10 ------- Run | Yrd Mat Min Traps Triggered . | . . . Indirectly . | . . . Trap Hack Attempts . | . . . Triggered . | . . . Disarmed . | . . . Reprogrammed . | . . . Reused . | . . . Traps Extracted . | . . . Installed . | . . . Triggered . | . . . Machines | -11 -10 -10 ---------- Run | Yrd Mat Min Machines Disabled . | . . . Max in Single Turn . | . . . Machines Repaired . | . . . Machines Dismantled . | . . . Machines Sabotaged . | . . . Overloaded Fab Kills . | . . . Hacking | -11 -10 -10 --------- Run | Yrd Mat Min Machines Accessed 3 | . 3 . Terminals 2 | . 2 . Fabricators . | . . . Repair Stations 1 | . 1 . Recycling Units . | . . . Scanalyzers . | . . . Garrison Access . | . . . Total Hacks 10 | . 10 . Successful 3 | . 3 . Failed 7 | . 7 . Catastrophic 1 | . 1 . Database Lockouts . | . . . Manual 3 | . 3 . Terminals 8 | . 8 . Fabricators . | . . . Repair Stations 2 | . 2 . Recycling Units . | . . . Scanalyzers . | . . . Garrison Access . | . . . Terminal Hacks 1 | . 1 . Unreport Threat 1 | . 1 . Fabricator Hacks . | . . . Repair Station Hacks 2 | . 2 . Scan Component 1 | . 1 . Repair 1 | . 1 . Recycling Unit Hacks . | . . . Scanalyzer . | . . . Garrison Access Hacks . | . . . Unauthorized Hacks . | . . . Terminals . | . . . Fabricators . | . . . Repair Stations . | . . . Recycling Units . | . . . Scanalyzers . | . . . Garrison Access . | . . . Data Cores Recovered . | . . . Used . | . . . Hacking Detections 2 | . 2 . Full Trace Events . | . . . Feedback Events . | . . . Feedback Blocked . | . . . Robot Schematics Acquired . | . . . Robots Built . | . . . Authchips . | . . . Time . | . . . Total Robot Build Rating . | . . . Part Schematics Acquired . | . . . Parts Built . | . . . Authchips . | . . . Time . | . . . Total Part Build Rating . | . . . Part Studies Acquired . | . . . Parts Repaired 1 | . 1 . Time 38 | . 38 . Parts Recycled . | . . . Recycled Matter . | . . . Retrieved Matter . | . . . Retrieved Components . | . . . Parts Scanalyzed . | . . . Part Schematics Acquired . | . . . Parts Damaged . | . . . Bothacking | -11 -10 -10 ------------ Run | Yrd Mat Min Used RIF Installer . | . . . Robots Hacked . | . . . Non-combat . | . . . Combat . | . . . Robot Hacks Applied . | . . . Relay Couplers Released . | . . . Fabnet Peak Effective % . | . . . Robots Rewired . | . . . Allies Hacked . | . . . Hacks Repelled . | . . . Allies | -11 -10 -10 -------- Run | Yrd Mat Min Total Allies . | . . . Largest Group . | . . . Highest-Rated Group . | . . . Highest-Rated Ally . | . . . Total Orders . | . . . Ally Attacks . | . . . Total Damage . | . . . Kills . | . . . Allies Corrupted . | . . . Allies Melted . | . . . Intel | -11 -10 -10 ------- Run | Yrd Mat Min Active Infowar (turns) 899 | 6 541 352 Terrain 239 | 5 234 . Seismic 899 | 6 541 352 Robot Analysis Total . | . . . Derelict Logs Recovered 1 | . . 1 Drone Launches . | . . . Drone Recoveries . | . . . Exploration | -11 -10 -10 ------------- Run | Yrd Mat Min Turns Passed 1161 | 129 596 436 Spaces Moved 627 | 57 308 262 Core 7 | 7 . . Treads . | . . . Legs 502 | 50 308 144 Wheels 118 | . . 118 Hover . | . . . Flight . | . . . Fastest Speed 50 | 50 120 90 Average Speed 116 | 124 120 111 Slowest Speed 200 | 200 120 190 Overloaded Moves . | . . . Propulsion Burnouts . | . . . Robots Hopped . | . . . Potential Cave-ins . | . . . Cave-ins Triggered . | . . . Exploration Rate (%) 35 | 5 42 60 Regions Visited 2 Branch Regions 1 Pre-discovered Areas 1 | . . 1 Known Exits Taken . | . . . Unknown Exits Taken 2 | 1 1 . Scrap Searched 1 | . . 1 Spaces Dug . | . . . Terrain Destroyed 28 | . . 28 Melee . | . . . Projectile . | . . . AOE 28 | . . 28 Terrain Rammed . | . . . Walls Destroyed . | . . . Machines Disabled . | . . . Actions | -11 -10 -10 --------- Run | Yrd Mat Min Total 888 | 87 455 346 Wait 81 | 1 66 14 Move 625 | 56 307 262 Hop . | . . . Pick Up 23 | 5 8 10 Fast Attach 13 | 7 4 2 Attach 11 | 1 5 5 Detach 1 | 1 . . Swap 18 | 1 7 10 Drop 17 | 1 6 10 Fire 99 | 14 52 33 Melee . | . . . Ram . | . . . Kick . | . . . Crush . | . . . Escape Stasis . | . . . Rewire . | . . . Trap . | . . . Miscellaneous . | . . . Route ------- -11/Scrapyard -10/Materials (discovered 2 exits: [*Min] / [*Sub]) -10/Mines History --------- Turn | Location | Event 13 | -11/Scrapyard | Discovered new exit (range 16) 130 | -11/Scrapyard | Entered Materials 307 | -10/Materials | Build established: Mutant 326 | -10/Materials | Repaired Imp. Terrain Scanner 381 | -10/Materials | Discovered new exit (range 7) 624 | -10/Materials | Lost 3 parts (2n1u) 717 | -10/Materials | Discovered new exit (range 9) 720 | -10/Materials | Core integrity fell below 50% 726 | -10/Materials | Entered Mines 770 | -10/Mines | Core integrity fell below 20% 834 | -10/Mines | Learned location of Storage (-9) 864 | -10/Mines | Received a Rocket Launcher from a helpful Derelict 1162 | -10/Mines | Destroyed by G-34 Mercenary with Small Laser Last Messages --------------- 01060_ U-05 Engineer lays Concrete. 01062_ Dropped Seismic Detector. 01063_ U-05 Engineer lays Concrete. 01063_ Acquired Seismic Detector. 01064_ U-05 Engineer lays Concrete. 01065_ Acquired 21 matter. 01066_ U-05 Engineer lays Concrete. 01090_ U-05 Engineer builds a Wall. 01092_ U-05 Engineer lays Concrete. 01123_ Searching scrap... 01123_ Found Hover Unit. 01123_ Found Hcp. Storage Unit. 01123_ Found Terrain Scanner. 01123_ Found Lgt. Assault Rifle. 01123_ Found 47 Matter. 01125_ Acquired Lgt. Assault Rifle. 01148_ Acquired 1 matter. 01153_ G-47 Trooper suffers critical hit (Burn). 01156_ G-47 Trooper destroyed. 01159_ Acquired 3 matter. Map ----- +----------------------------------------------------+ | ??????###???## # #????????# #?????## | | ?????## #?## ###????????# #????## | | ?????# ## ##?????????#### ###????# | | ?????# =#???###?####### ####???# | | ?????# ##?## ### #???# | | ?????# ### ####### ##### | | ?????# ! ## # #?????# ## | | ?????## = % #### ###????### ## | | ??????## = !%! % ## #### ## | | ??????## ## ## | | ????### ######## | | ???## ##????## ###### # | | ???# #????# ## #???#### | | ???# ##???# ##### #??????? | | ???## ###### #####???? #?????? | | ????## #######????????? #????? | | ?????### ##?????????????? ????? | | ???????## ###????????????? ????? | | ????????## ##???????????? ??????? | | ?????????#### #???????????????????? | | ????????????## #???????????????????? | | ????????????## #???????????????????? | | ???????###### ! ##???????????????????? | | ??????## ## ##=####????????????????????? | | ??????# ###%########????????????????? | | ??????# ##?#!@ g #????????????????? | | ??????## ##??######## #????????????????? | | ???????######?????????????????????????????? | | ??????????????????????????????????????????? | | ??????????????????????????????????????????? | | ??????????????????????????????????????????? | | ??????????????????????????????????????????? | | ??????????????????????????????????????????? | | ??????????????????????????????????????????? | | ??????????????????????????????????????????? | | ??????????????????????????????????????????? | | ??????????????????????????????????????????? | | ??????????????????????????????????????????? | | ??????????????????????????????????????????? | | ??????????????????????????????????????????? | | ??????????????????????????????????????????? | | ??????????????????????????????????????????? | | ??????????????????????????????????????????? | | ??????????????????????????????????????????? | | ??????????????????????????????????????????? | | ??????????????????????????????????????????? | | ??????????????????????????????????????????? | | ??????????????????????????????????????????? | | ??????????????????????????????????????????? | | ??????????????????????????????????????????? | +----------------------------------------------------+ Best States ------------- Heat Dissipation 25 Energy Generation 10 Energy Capacity 250 Matter Stores 300 Matter Capacity 300 Sight Range 16 Terrain Scan Range 16 Terrain Scan Density 10 Armor Coverage 300 Weapon Shielding 33 Evasion (%) 55 Item Schematics ----------------- None Robot Schematics ------------------ None Fabricated ------------ Nothing Repaired ---------- Imp. Terrain Scanner | 36% | -10/Materials Studied --------- None Alien Tech Used ----------------- None Achievements -------------- Well Done Challenges ------------ None Game ------ Seed RemoteChipProtection Manual? 0 Play Time 00:22:10 Cumulative 11.4 hours Start 2026.04.07 @ 21:03:12 End 2026.04.07 @ 21:24:10 Sessions 1 Manual Loads 0 Difficulty Rogue Special Mode None Game No. 6 Rogue 2 Adventurer 4 Explorer 0 Win Type - Total 0 Types 0/0/0/0/0/0/0/0/0/0 Lore% 4 Gallery% 10 Achievement% 10 Wizard Run 0 Options --------- Layout 1 ASCII 0 Keyboard 0 Movement Mouse Keybinds 0 Fullscreen 2 Font 24/Smallcaps Map View 50x35 Zoom Use 24% Tactical HUD 1 Map Filters NONE Filters NONE Steam 1 RUN: 886145ef-be45-46d7-8414-92852343efd5